bitfinex-derivatives/quotes_ETHF0:USTF0_20250929
["timestamp","ask_amount","ask_price","bid_price","bid_amount"]
[1759155482834,0.264,4175.5,4175.1,0.43088]
[1759155483036,0.264,4175.5,4175.1,1.1093]
[1759155483342,1.80835476,4176.0,4175.1,1.1093]
[1759155483850,1.1488,4175.8,4175.1,1.1093]
[1759155484533,1.1488,4175.8,4175.0,0.2224]
[1759155484534,2.7454,4175.8,4175.7,0.7818]
[1759155484731,1.1488,4175.7,4174.7,1.1093]
[1759155484932,1.9636,4175.7,4175.6,0.7818]
[1759155485437,1.9636,4175.7,4175.6,2.6456]
[1759155485740,0.264,4175.8,4175.7,1.8638]
[1759155486036,0.4741,4176.5,4175.7,1.96712]
[1759155486340,1.1488,4176.3,4175.7,3.07642]
[1759155486531,1.33400913,4176.3,4175.7,3.07642]
[1759155486727,1.33400913,4176.3,4175.7,2.6456]
[1759155486930,2.2276,4176.2,4176.1,1.5363]
[1759155487134,2.7454,4176.2,4176.1,1.5363]
[1759155487325,3.0094,4176.2,4176.1,1.5363]
[1759155487737,3.0094,4176.2,4176.1,0.7818]
[1759155488138,3.0094,4176.2,4174.2,1.07743]
[1759155488332,0.4741,4176.5,4176.0,0.7818]
[1759155488333,2.7454,4176.1,4176.0,0.7818]
[1759155488535,3.0094,4176.1,4176.0,2.6456]
[1759155489241,2.7454,4176.1,4176.0,2.6456]
[1759155489536,1.1488,4176.4,4176.1,1.1093]
[1759155489738,1.9636,4176.4,4176.3,1.5363]
[1759155489942,2.2276,4176.4,4176.3,1.5363]
[1759155490135,3.0094,4176.4,4176.3,1.5363]
[1759155490632,2.7454,4176.1,4176.0,0.7818]
[1759155491041,2.7454,4176.1,4176.0,2.6456]
[1759155491235,1.1488,4176.5,4176.0,1.5363]
[1759155491539,2.7454,4176.8,4176.7,0.7818]
[1759155491930,2.7454,4176.8,4176.7,1.5363]
[1759155492135,0.66627682,4177.0,4176.9,0.7818]
[1759155492332,2.52687682,4177.0,4176.9,0.7818]
[1759155492735,3.41167682,4177.0,4176.9,2.6456]
[1759155492935,3.67567682,4177.0,4176.9,1.5363]
[1759155493236,3.4835,4177.0,4176.9,1.5363]
[1759155493442,1.9636,4177.0,4176.9,2.6456]
[1759155493645,1.1488,4177.3,4177.0,1.1093]
[1759155493844,0.00199038,4177.8,4177.0,1.1093]
[1759155493845,3.81988993,4177.5,4177.4,2.5692]
[1759155494039,4.2733462,4177.5,4177.4,2.5692]
[1759155494235,4.2733462,4177.5,4177.4,1.4738]
[1759155494236,5.4987462,4177.5,4177.4,1.4738]
[1759155494548,5.4987462,4177.5,4177.4,0.7297]
[1759155494742,5.2347462,4177.5,4177.4,0.7297]
[1759155494940,5.4987462,4177.5,4176.5,1.5657]
[1759155495145,1.9321,4176.6,4176.5,0.7297]
[1759155495441,1.2052,4176.4,4175.7,1.0954]
[1759155496041,0.264,4176.3,4175.7,1.0954]
[1759155496238,0.264,4176.2,4175.7,1.0954]
[1759155496436,0.263,4176.1,4175.7,1.0954]
[1759155496639,1.2052,4176.6,4175.8,1.0954]
[1759155496940,0.7299,4176.5,4175.9,1.0954]
[1759155497146,1.2052,4176.4,4175.5,1.0954]
[1759155498749,1.2052,4176.4,4175.1,1.0954]
[1759155499340,1.2052,4176.4,4174.7,1.71351044]
[1759155499547,1.2052,4176.4,4174.5,0.00273307]
[1759155499548,10.1452,4176.4,4174.5,0.00273307]
[1759155500045,10.1452,4176.4,4174.6,1.0954]
[1759155500440,0.263,4176.3,4174.6,1.0954]
[1759155500642,1.4682,4176.2,4174.6,0.43093]
[1759155500843,0.4669,4176.0,4174.5,1.09813307]
[1759155501144,1.2052,4175.8,4174.6,1.0954]
[1759155501355,1.2052,4175.8,4174.5,0.00273307]
[1759155501356,9.4952,4175.8,4174.5,0.00273307]
[1759155501753,1.2052,4174.9,4174.5,0.00273307]
[1759155501942,0.4669,4175.0,4174.5,0.00273307]
[1759155501943,1.2052,4174.7,4174.5,0.00273307]
[1759155502145,1.4682,4174.6,4174.5,0.00273307]
[1759155502346,0.00261937,4174.7,4174.5,1.09813307]
[1759155502549,0.00261937,4174.7,4174.6,6.0954]
[1759155503151,34.482,4176.7,4174.5,0.74167307]
[1759155503152,0.205,4175.3,4175.2,1.0954]
[1759155503454,1.2052,4174.9,4174.4,0.35091842]
[1759155503756,0.263,4174.8,4174.2,1.0954]
[1759155504056,0.263,4174.8,4174.3,1.0954]
[1759155504246,40.8,4175.3,4174.0,0.3053]
[1759155504452,1.4653,4175.2,4174.1,1.2001]
[1759155504646,1.2023,4175.2,4174.1,1.2001]
[1759155504958,1.2023,4174.9,4174.1,1.2001]
[1759155505646,1.2023,4174.7,4174.1,1.2001]
[1759155506154,1.39111466,4174.7,4174.1,1.2001]
[1759155507359,1.39111466,4174.7,4174.0,0.00199826]
[1759155507853,1.2023,4174.7,4174.0,1.20209826]
[1759155508050,1.2023,4174.4,4174.0,0.00199826]
[1759155508353,0.263,4174.3,4174.0,0.00199826]
[1759155508554,0.263,4174.2,4174.0,0.00199826]
[1759155508757,1.2023,4174.1,4174.0,0.00199826]
[1759155508953,1.2023,4174.1,4174.0,1.20209826]
[1759155509153,1.2023,4174.4,4174.2,1.2001]
[1759155509355,1.4653,4174.3,4174.2,1.2001]
[1759155509752,0.4646,4174.5,4174.2,1.63107]
[1759155509952,0.65283228,4175.0,4174.4,1.2001]
[1759155510150,0.4646,4174.5,4174.0,0.00199826]
[1759155510352,1.2023,4174.4,4174.0,0.00199826]
[1759155510552,1.2023,4174.2,4174.0,0.00199826]
[1759155511358,1.2023,4174.2,4173.1,1.2001]
[1759155511547,1.2023,4174.2,4172.9,0.02396444]
[1759155512253,1.6669,4173.0,4172.9,0.02396444]
[1759155512455,1.9299,4173.0,4172.9,0.02567429]
[1759155513350,1.9299,4173.0,4171.9,1.2001]
[1759155513560,1.9299,4173.0,4170.9,1.07829]
[1759155513753,1.9299,4173.0,4171.7,0.43123]
[1759155513754,1.2023,4172.9,4171.7,0.43123]
[1759155514060,1.2023,4172.7,4171.4,1.63136]
[1759155514252,0.263,4172.8,4171.4,1.63136]
[1759155514454,0.263,4172.8,4171.4,1.63394948]
[1759155514659,1.2023,4172.7,4171.4,1.20268948]
[1759155515162,1.2023,4172.7,4171.4,0.00258948]
[1759155515358,1.6669,4171.5,4171.4,0.00258948]
[1759155515557,1.6686288,4171.5,4171.4,0.00258948]
[1759155517353,1.6686288,4171.5,4170.4,0.43136]
[1759155517557,1.6686288,4171.5,4170.3,1.2001]
[1759155517869,1.6686288,4171.5,4170.6,0.43135]
[1759155518259,1.6686288,4171.5,4170.4,0.43136]
[1759155518460,1.6686288,4171.5,4170.4,0.00258306]
[1759155518669,1.6669,4170.5,4170.4,0.00258306]
[1759155520865,1.6669,4170.5,4169.5,1.2001]
[1759155521354,1.6669,4170.5,4169.1,1.2001]
[1759155521559,1.6669,4170.5,4168.8,0.43153]
[1759155521759,0.4646,4170.5,4168.8,0.43447541]
[1759155522065,0.4646,4170.5,4168.8,0.00294541]
[1759155522066,1.2023,4168.9,4168.8,0.00294541]
[1759155522964,1.2023,4168.9,4168.8,1.20304541]
[1759155523362,0.263,4169.0,4168.9,1.2001]
[1759155523559,0.4646,4170.0,4169.5,0.43145]
[1759155523761,0.4646,4170.0,4169.7,1.2001]
[1759155523762,1.2023,4169.9,4169.7,1.2001]
[1759155523964,1.4653,4169.8,4169.7,1.2001]
[1759155524160,1.2023,4169.8,4169.7,1.2001]
[1759155524363,1.4653,4169.8,4169.7,1.2001]
[1759155524565,0.263,4170.2,4169.2,1.07874]
[1759155524864,1.2023,4170.3,4170.0,1.2001]
[1759155525171,1.2023,4170.2,4170.1,1.2001]
[1759155525462,2.3739909,4170.5,4170.4,1.2001]
[1759155525463,1.2023,4170.5,4170.4,1.2001]
[1759155525669,1.2023,4170.5,4169.9,0.43142]
[1759155525966,1.6669,4170.5,4169.5,1.51456]
[1759155526163,0.4646,4170.5,4170.3,0.43138]
[1759155526363,40.8,4171.4,4170.7,1.63144]
[1759155526364,1.2023,4170.8,4170.7,1.63144]
[1759155526568,1.2023,4171.1,4171.0,1.2001]
[1759155526756,0.263,4171.2,4170.8,0.43133]
[1759155526959,0.4663288,4171.5,4171.0,0.4313]
[1759155527161,1.2023,4171.3,4170.7,0.43134]
[1759155527565,0.263,4171.4,4170.6,1.2001]
[1759155527566,1.2023,4171.4,4171.2,1.2001]
[1759155527867,0.0017288,4171.5,4171.2,1.2001]
[1759155528066,1.2023,4171.4,4171.2,1.2001]
[1759155528257,0.0017288,4171.5,4171.3,0.43127]
[1759155528570,0.0017288,4171.5,4171.4,1.2001]
[1759155528775,0.0017288,4171.5,4171.0,0.4359]
[1759155528977,0.0017288,4171.5,4171.4,1.2001]
[1759155530660,0.4663288,4171.5,4171.2,0.0075]
[1759155530872,1.2023,4171.4,4171.2,0.0075]
[1759155531570,0.2647288,4171.5,4171.2,0.0075]
[1759155531759,1.4670288,4171.5,4171.4,0.43127]
[1759155531964,0.0017288,4171.5,4171.4,1.63137]
[1759155532170,0.0017288,4171.5,4171.4,1.2001]
[1759155532369,0.0017288,4171.5,4171.2,1.63888]
[1759155532570,0.0017288,4171.5,4171.4,0.43127]
[1759155532873,0.0017288,4171.5,4171.4,1.63137]
[1759155533073,1.2040288,4171.5,4171.3,0.43127]
[1759155533465,1.2040288,4171.5,4171.4,1.2001]
[1759155533970,0.0017288,4171.5,4171.4,1.2001]
[1759155534272,0.0017288,4171.5,4171.2,0.43878]
[1759155534471,1.1137,4171.4,4171.2,0.0075]
[1759155534867,0.4407288,4171.5,4171.2,0.0075]
[1759155535171,0.0017288,4171.5,4171.4,1.1769]
[1759155536171,0.06324243,4171.9,4171.8,0.43122]
[1759155536471,0.178,4172.9,4172.4,1.1769]
[1759155536772,1.1137,4172.8,4172.5,1.1769]
[1759155536972,0.178,4172.9,4172.3,1.60807]
[1759155537172,0.18062092,4172.9,4172.3,1.61082323]
[1759155537471,0.00262092,4172.9,4172.3,0.43392323]
[1759155537674,1.1137,4172.8,4172.3,0.00275323]
[1759155537866,1.1137,4172.4,4172.3,0.00275323]
[1759155538572,1.1137,4172.4,4172.3,1.17965323]
[1759155538770,1.1137,4172.6,4172.4,1.60806]
[1759155538962,1.1137,4172.8,4172.6,0.43114]
[1759155539270,0.00262092,4172.9,4172.8,1.1769]
[1759155539660,0.00262092,4172.9,4172.8,6.1769]
[1759155540572,1.69162849,4176.0,4172.8,6.1769]
[1759155540573,1.1137,4174.2,4173.5,1.60795]
[1759155540867,1.12231,4173.6,4173.4,0.43105]
[1759155541067,1.1137,4173.5,4173.4,0.43105]
[1759155541270,1.1137,4173.5,4173.2,1.1769]
[1759155541571,1.1137,4173.4,4172.6,1.60804]
[1759155541769,1.1137,4172.9,4172.3,0.00275323]
[1759155542069,1.1137,4172.9,4172.5,0.43115]
[1759155542269,1.1137,4172.9,4172.3,0.00275323]
[1759155542677,0.702,4173.0,4172.4,0.43116]
[1759155542868,1.1137,4172.9,4172.3,0.00275323]
[1759155543064,1.1137,4172.4,4172.3,0.00275323]
[1759155543670,6.1137,4172.4,4171.3,0.43127]
[1759155543978,1.1137,4172.2,4171.3,0.43127]
[1759155544376,1.1137,4172.2,4171.2,0.43878]
[1759155544574,1.1137,4172.2,4171.3,1.1769]
[1759155544774,1.1137,4172.2,4171.5,1.1769]
[1759155545071,1.1137,4172.2,4171.2,0.00984305]
[1759155545473,1.1137,4171.4,4171.2,0.00984305]
[1759155545676,1.1137,4171.2,4169.6,1.1769]
[1759155546171,1.3019241,4171.2,4169.2,1.1769]
[1759155546371,1.5527,4171.0,4169.2,1.07874]
[1759155546570,1.5527,4171.0,4169.7,1.1769]
[1759155546773,1.5527,4171.0,4169.2,1.1792233]
[1759155547181,1.5527,4171.0,4169.2,0.0023233]
[1759155548077,0.439,4169.5,4169.2,0.0023233]
[1759155548379,1.1137,4169.4,4169.2,0.0023233]
[1759155550378,1.3767,4169.3,4169.2,0.0023233]
[1759155550573,1.1137,4168.9,4168.6,0.0073]
[1759155550975,0.263,4168.8,4168.6,0.0073]
[1759155551176,1.1137,4168.7,4168.6,0.0073]
[1759155551385,1.1137,4168.7,4166.5,1.1769]
[1759155551386,1.1137,4167.9,4166.5,1.1769]
[1759155551576,0.263,4167.8,4166.6,1.1769]
[1759155551873,1.1137,4168.4,4167.5,0.43167]
[1759155552081,1.1137,4168.4,4167.6,1.1769]
[1759155552276,1.1137,4168.4,4167.7,0.43165]
[1759155552476,1.1137,4168.2,4167.6,1.1769]
[1759155552781,1.1137,4168.2,4167.2,1.60859]
[1759155553286,1.3327,4168.2,4167.3,0.43169]
[1759155553577,1.3767,4168.7,4167.6,1.51081]
[1759155553779,1.3767,4168.7,4168.3,0.43158]
[1759155554076,1.3767,4168.7,4168.4,0.43157]
[1759155554077,1.1137,4168.7,4168.4,0.43157]
[1759155554280,40.8,4169.4,4167.6,1.1769]
[1759155554281,0.263,4168.9,4168.3,0.43159]
[1759155554480,1.1137,4168.8,4168.5,1.1769]
[1759155554677,1.1137,4168.8,4167.9,1.1769]
[1759155554873,0.242,4169.3,4168.8,0.43153]
[1759155555078,1.3557,4169.3,4168.8,0.43153]
[1759155555281,1.3557,4169.3,4168.7,1.1769]
[1759155555483,0.439,4170.0,4168.2,1.079]
[1759155555484,1.1137,4169.4,4168.9,0.43152]
[1759155555676,1.1137,4169.4,4168.4,1.1395]
[1759155555881,1.1137,4169.4,4168.6,1.1395]
[1759155556085,0.00293562,4169.5,4169.4,1.1395]
[1759155557572,0.00293562,4169.5,4169.4,6.1395]
[1759155557882,1.1746,4170.6,4169.5,0.4308]
[1759155558087,1.1746,4170.6,4170.0,1.1395]
[1759155558589,1.1746,4170.4,4169.2,0.43149]
[1759155558784,1.1746,4170.4,4170.0,0.00218953]
[1759155559582,1.1746,4170.4,4168.1,1.07902]
[1759155559583,1.1746,4170.2,4168.3,0.263]
[1759155559789,1.1746,4170.2,4168.3,1.1395]
[1759155560181,1.1746,4170.2,4168.4,0.43157]
[1759155560490,1.6064,4170.0,4168.7,0.43154]
[1759155560694,1.6064,4170.0,4168.7,0.00178864]
[1759155561194,1.1746,4168.9,4168.7,0.00178864]
[1759155561683,0.4318,4169.0,4168.7,0.00178864]
[1759155561883,1.3066,4169.4,4168.8,1.1395]
[1759155562089,1.1746,4169.9,4169.4,0.43147]
[1759155562291,1.6064,4170.0,4169.1,1.1395]
[1759155562591,1.1746,4170.0,4169.3,1.1395]
[1759155562788,1.1746,4170.0,4169.6,0.43145]
[1759155562986,1.1746,4170.0,4169.2,1.1395]
[1759155563184,1.17737714,4170.6,4169.0,0.4308]
[1759155563487,1.6064,4170.5,4169.9,1.1395]
[1759155563686,1.6064,4170.5,4169.9,1.57092]
[1759155563882,1.6064,4170.5,4169.9,1.1395]
[1759155564493,1.12517714,4170.6,4169.6,1.07863]
[1759155564786,0.00277714,4170.6,4170.0,1.3998]
[1759155564993,0.00277714,4170.6,4170.5,1.1256]
[1759155565187,0.00277714,4170.6,4170.0,1.1256]
[1759155565388,0.4249,4170.5,4170.0,1.1256]
[1759155565790,1.1224,4170.4,4169.4,1.1256]
[1759155566283,1.1224,4170.4,4169.6,0.43144]
[1759155566488,1.1224,4170.4,4169.6,0.43145]
[1759155567085,1.1224,4170.4,4169.6,1.1256]
[1759155567292,0.00277714,4170.6,4169.6,1.1256]
[1759155567488,1.1224,4170.5,4169.6,1.1256]
[1759155567680,1.5473,4170.5,4169.6,1.1256]
[1759155567889,0.4249,4170.5,4169.6,1.55705]
[1759155568191,1.1224,4170.4,4169.6,1.1256]
[1759155568489,1.1224,4170.4,4169.6,1.55704]
[1759155568883,1.1224,4170.4,4169.5,0.2858]
[1759155569084,1.1224,4170.4,4170.1,1.1256]
[1759155569285,1.1224,4170.4,4169.7,1.1256]
[1759155569488,1.1224,4170.4,4169.8,0.43143]
[1759155569793,1.1224,4170.4,4169.9,0.43142]
[1759155569989,0.00277714,4170.6,4169.6,2.20422]
[1759155570291,0.00277714,4170.6,4170.5,1.1256]
[1759155571093,0.00277714,4170.6,4170.5,6.5564]
[1759155573895,1.1224,4171.9,4171.5,1.1256]
[1759155574292,0.4318,4172.0,4171.5,1.1256]
[1759155574487,1.1224,4172.0,4171.2,1.1256]
[1759155574685,1.5473,4172.5,4171.8,1.55682]
[1759155574890,1.54929609,4172.5,4171.8,1.12803604]
[1759155575092,1.54929609,4172.5,4172.1,0.43119]
[1759155575391,1.12439609,4172.5,4172.3,1.1256]
[1759155575582,1.12439609,4172.5,4172.3,1.55677]
[1759155575899,0.00199609,4172.5,4172.4,1.1256]
[1759155576994,0.00199609,4172.5,4172.4,6.1256]
[1759155577489,0.022,4172.9,4172.8,1.55672]
[1759155578492,0.02489036,4172.9,4172.8,1.55672]
[1759155579994,1.14729036,4172.9,4172.8,0.03279069]
[1759155580793,0.02489036,4172.9,4172.8,1.15839069]
[1759155582295,0.02489036,4172.9,4172.8,6.15839069]
[1759155582500,0.02489036,4172.9,4172.8,1.15839069]
[1759155582797,1.14729036,4172.9,4172.8,0.03279069]
[1759155583297,6.14729036,4172.9,4172.8,0.03279069]
[1759155583499,6.14729036,4172.9,4171.8,0.26443604]
[1759155583689,1.14729036,4172.9,4171.8,0.26443604]
[1759155584189,1.14729036,4172.9,4171.9,1.1256]
[1759155584393,1.14729036,4172.9,4172.1,1.1256]
[1759155585498,1.14729036,4172.9,4171.8,0.26443604]
[1759155585694,1.14729036,4172.9,4171.8,0.00243604]
[1759155585896,1.1224,4171.9,4171.8,0.00243604]
[1759155586698,1.1224,4172.4,4171.8,0.00243604]
[1759155587193,1.1224,4171.9,4171.8,0.00243604]
[1759155588494,6.1224,4171.9,4171.8,0.00243604]
[1759155589095,6.3844,4171.9,4170.2,0.43138]
[1759155589294,1.3844,4171.9,4170.2,0.43138]
[1759155589600,1.57739701,4171.9,4170.3,0.43138]
[1759155589990,1.31539701,4171.9,4170.4,0.43136]
[1759155590196,0.224,4171.8,4170.5,0.43135]
[1759155590502,1.1224,4171.7,4170.4,1.1256]
[1759155590700,1.3844,4171.7,4170.6,0.43134]
[1759155590997,1.3844,4171.7,4170.4,1.1256]
[1759155591297,1.1224,4171.7,4170.8,1.1256]
[1759155591499,1.1224,4171.7,4171.2,0.43128]
[1759155591699,1.1224,4171.7,4170.9,0.43131]
[1759155591902,1.1224,4171.7,4170.9,1.1256]
[1759155592091,1.1224,4171.7,4170.6,0.43134]
[1759155592291,1.1224,4171.7,4170.5,0.4308]
[1759155592292,1.1224,4171.9,4170.5,1.1256]
[1759155592497,1.1224,4171.9,4170.8,1.1256]
[1759155592810,1.3304,4171.9,4170.8,1.1256]
[1759155592999,1.1224,4171.9,4170.8,1.1256]
[1759155593902,1.1224,4171.9,4171.1,1.55689]
[1759155594102,1.1224,4171.9,4171.2,1.0938]
[1759155594606,1.1224,4171.9,4171.3,0.43127]
[1759155594906,1.1224,4171.9,4171.4,0.43126]
[1759155595199,1.1477,4171.9,4171.5,0.43125]
[1759155595400,1.1477,4171.9,4170.7,0.62250275]
[1759155595598,1.1477,4171.9,4170.6,1.0938]
[1759155595799,1.1477,4171.9,4170.8,0.43132]
[1759155596307,1.1477,4171.9,4171.0,0.4313]
[1759155596506,1.1477,4171.9,4170.9,0.0239]
[1759155597393,1.1477,4171.9,4171.1,0.43129]
[1759155597603,1.1477,4171.9,4171.3,0.43127]
[1759155597802,1.1477,4171.9,4171.3,1.52507]
[1759155597999,0.4249,4172.0,4171.4,0.43126]
[1759155598199,1.1477,4171.9,4171.0,0.4243]
[1759155598399,1.1477,4171.9,4171.1,1.0938]
[1759155598907,1.1477,4171.9,4171.7,1.0938]
[1759155599112,1.1477,4171.9,4171.5,1.0938]
[1759155599604,1.1477,4171.9,4171.1,1.0938]
[1759155599809,1.1477,4171.9,4171.1,1.52509]
[1759155600000,1.1477,4171.9,4171.3,0.43128]
[1759155600202,0.4249,4172.0,4171.1,1.52509]
[1759155600401,1.1477,4171.9,4171.1,1.52509]
[1759155600602,1.1477,4171.9,4171.2,0.43129]
[1759155600810,1.1477,4171.9,4171.1,1.5251]
[1759155601010,1.1477,4171.9,4171.0,0.62250275]
[1759155601211,1.5768,4171.0,4170.9,0.0239]
[1759155601509,1.5768,4171.0,4170.3,0.62429094]
[1759155601706,1.1477,4171.6,4170.5,0.2742]
[1759155601914,1.1477,4171.6,4170.9,1.52512]
[1759155602113,0.4291,4171.5,4170.9,1.0938]
[1759155602304,1.1477,4171.6,4170.9,1.0938]
[1759155602500,1.1477,4171.9,4171.2,1.0938]
[1759155602804,1.1477,4171.9,4171.5,0.43125]
[1759155603003,1.1477,4171.9,4171.6,1.0938]
[1759155603208,0.4249,4172.0,4171.6,1.0938]
[1759155603409,1.1477,4171.9,4171.7,0.43123]
[1759155603609,1.5768,4172.5,4171.8,1.0938]
[1759155603801,1.5768,4172.5,4171.8,1.71630275]
[1759155604001,0.4291,4172.0,4171.3,1.25298433]
[1759155604206,0.4291,4171.0,4170.8,1.25298433]
[1759155604415,0.4291,4171.0,4170.4,1.0938]
[1759155605105,1.1477,4170.9,4170.3,0.00178819]
[1759155605302,1.1477,4170.9,4170.5,0.0239]
[1759155606212,0.4291,4171.0,4170.5,0.0239]
[1759155607016,1.1477,4170.9,4170.5,0.0239]
[1759155607613,1.1477,4170.9,4170.5,1.1177]
[1759155607814,0.4291,4171.0,4170.5,1.1177]
[1759155608111,0.4291,4171.0,4170.5,0.0239]
[1759155608413,1.1477,4170.9,4170.6,1.0938]
[1759155609411,1.1477,4171.4,4170.6,1.0938]
[1759155611116,1.1477,4171.9,4170.6,1.0938]
[1759155611309,1.1477,4171.9,4170.7,2.34678433]
[1759155611506,1.1477,4171.9,4170.8,1.25298433]
[1759155611706,0.4291,4172.5,4171.1,1.0938]
[1759155611707,1.1477,4172.4,4171.1,1.0938]
[1759155612009,1.1477,4172.4,4171.3,2.34678433]
[1759155612211,1.1477,4172.4,4171.5,0.4243]
[1759155612508,1.1477,4172.4,4171.7,1.0938]
[1759155612711,0.02489036,4172.9,4171.7,1.0938]
[1759155612712,1.1477,4172.8,4171.7,1.0938]
[1759155613712,1.1477,4172.8,4171.5,0.4243]
[1759155613713,1.1477,4172.8,4171.9,1.25298433]
[1759155613919,1.1477,4172.8,4171.5,2.08140575]
[1759155613920,1.1477,4172.8,4172.1,1.129]
[1759155614812,0.02489036,4172.9,4172.1,2.38198433]
[1759155615008,0.02489036,4172.9,4172.2,1.129]
[1759155615204,0.02489036,4172.9,4172.1,1.25298433]
[1759155615205,0.02489036,4172.9,4172.6,1.129]
[1759155615816,0.02489036,4172.9,4172.7,1.25298433]
[1759155616017,0.02489036,4172.9,4172.8,1.129]
[1759155616812,0.02489036,4172.9,4172.8,6.129]
[1759155617612,1.0314,4173.8,4172.9,1.129]
[1759155618410,1.0314,4173.8,4172.4,2.64398433]
[1759155618611,1.4658,4172.5,4172.4,0.262]
[1759155619216,1.0314,4173.0,4172.4,0.262]
[1759155619421,1.4658,4173.0,4172.4,0.262]
[1759155619614,0.4344,4173.5,4172.4,0.262]
[1759155619615,0.4344,4173.5,4172.5,1.4975]
[1759155619816,1.0314,4173.4,4172.5,1.4975]
[1759155620123,1.0314,4173.4,4172.5,1.129]
[1759155620316,1.0314,4173.4,4172.4,0.262]
[1759155620521,1.4658,4172.5,4171.6,1.25298433]
[1759155620713,1.0314,4171.9,4170.5,0.4396]
[1759155620917,1.0314,4171.9,4170.5,1.1529]
[1759155621418,1.0314,4171.9,4170.6,1.129]
[1759155622117,1.0314,4171.9,4170.5,0.0239]
[1759155622623,1.0314,4170.9,4170.5,0.0239]
[1759155622824,0.4344,4171.0,4170.5,0.0239]
[1759155623120,1.0314,4170.9,4170.5,0.0239]
[1759155623623,1.0314,4171.4,4170.6,1.129]
[1759155624023,1.0528,4172.2,4170.8,1.1278]
[1759155624210,1.0528,4172.2,4171.1,1.25298433]
[1759155624520,1.0528,4172.2,4171.2,1.1278]
[1759155626427,1.0528,4172.2,4170.7,1.3868]
[1759155626624,1.0528,4172.4,4170.7,1.3868]
[1759155626818,41.2344,4173.0,4170.7,1.3868]
[1759155627012,1.0528,4172.4,4170.5,0.0239]
[1759155628729,1.0528,4170.9,4170.5,0.0239]
[1759155632333,1.0528,4170.9,4170.3,0.00178819]
[1759155634533,1.0528,4171.4,4170.4,1.1278]
[1759155635223,1.0528,4171.4,4170.3,0.00178819]
[1759155635424,0.6636,4172.0,4170.4,1.1278]
[1759155635425,0.4406,4172.0,4170.4,1.1278]
[1759155635626,1.0528,4171.9,4171.0,0.356]
[1759155635827,0.4344,4172.5,4171.1,2.19916988]
[1759155635828,1.0528,4172.4,4171.1,2.19916988]
[1759155636032,1.0528,4172.4,4171.2,1.96016988]
[1759155636238,1.0528,4172.4,4171.6,1.1278]
[1759155636931,1.0528,4172.9,4171.6,1.3184754]
[1759155637128,1.0528,4172.9,4171.9,0.83236988]
[1759155637326,1.0528,4172.9,4172.1,1.1278]
[1759155637532,1.0528,4172.9,4172.2,1.1278]
[1759155638439,1.0528,4172.9,4172.3,0.83236988]
[1759155638632,0.4406,4173.5,4172.6,1.1278]
[1759155638633,1.0528,4173.4,4172.6,1.1278]
[1759155638936,1.05576277,4173.8,4172.6,1.1278]
[1759155639439,1.0528,4173.7,4172.6,1.96016988]
[1759155639636,1.0528,4173.7,4172.7,1.1278]
[1759155639837,0.00296277,4173.8,4173.1,1.1278]
[1759155642039,0.00296277,4173.8,4173.1,1.96016988]
[1759155642236,0.00296277,4173.8,4173.2,1.1278]
[1759155642534,1.4934,4174.5,4173.3,1.1278]
[1759155642741,1.0528,4174.5,4173.5,0.83236988]
[1759155642932,1.4934,4175.0,4173.7,1.1278]
[1759155643126,1.0528,4175.0,4173.9,1.1278]
[1759155643438,1.0528,4175.0,4174.1,1.1278]
[1759155643739,1.0528,4174.9,4174.6,1.1278]
[1759155643940,0.00194524,4175.0,4174.6,0.261]
[1759155644136,0.00194524,4175.0,4174.8,4.1278]
[1759155644333,0.00194524,4175.0,4174.9,1.1278]
[1759155644637,0.00194524,4175.0,4174.9,1.16059069]
[1759155645037,0.00194524,4175.0,4174.9,4.16059069]
[1759155645737,0.4406,4176.0,4175.0,0.356]
[1759155645738,1.0528,4175.8,4175.0,0.356]
[1759155646041,1.69162849,4179.3,4175.1,1.1278]
[1759155646245,2.98718188,4180.2,4179.1,1.1278]
[1759155646246,4.03998188,4180.2,4179.1,1.1278]
[1759155646432,1.0528,4180.2,4179.2,0.263]
[1759155646628,1.0528,4180.2,4179.7,0.03279069]
[1759155646827,0.00237163,4180.2,4179.7,0.03560756]
[1759155647028,0.00237163,4180.2,4180.1,1.1278]
[1759155647234,1.0528,4181.2,4180.1,4.1278]
[1759155647842,1.0528,4181.2,4180.6,0.03279069]
[1759155648136,1.0528,4181.2,4180.9,3.0]
[1759155648333,5.0,4181.1,4179.7,0.00281687]
[1759155648530,0.26470312,4181.2,4179.7,0.00281687]
[1759155648734,0.00170312,4181.2,4179.7,0.00281687]
[1759155651839,5.00170312,4181.2,4179.7,0.00281687]
[1759155652343,0.00170312,4181.2,4179.7,0.00281687]
[1759155652846,40.8,4181.1,4179.7,0.00281687]
[1759155653147,0.262,4181.0,4179.8,1.1278]
[1759155653741,0.262,4180.9,4179.8,1.1278]
[1759155653951,0.262,4180.8,4179.8,1.1278]
[1759155654743,0.262,4180.8,4179.7,0.00281687]
[1759155654938,10.312,4180.8,4179.7,0.00281687]
[1759155655847,5.0,4180.7,4179.7,0.00281687]
[1759155656147,40.8,4181.1,4179.8,1.0831]
[1759155656342,0.262,4180.6,4179.7,0.00281687]
[1759155656544,8.462,4180.6,4179.7,0.00281687]
[1759155656942,8.2,4180.6,4179.7,0.00281687]
[1759155657140,40.8,4181.1,4179.7,1.08591687]
[1759155657341,41.88,4181.1,4179.7,1.08591687]
[1759155657538,0.262,4181.0,4179.7,1.08591687]
[1759155657950,8.932,4181.0,4179.7,1.08591687]
[1759155658150,8.932,4181.0,4179.7,0.00281687]
[1759155658447,13.932,4181.0,4179.7,0.00281687]
[1759155658949,40.8,4180.5,4179.7,0.00281687]
[1759155659350,0.262,4180.4,4179.7,0.00281687]